[Event "Titled Tuesday Blitz November 14 Late 2023"]
[White "Manukyan, Sargis A."]
[Black "Polaczek, Richard"]
[WhiteFideId "13303970"]
[BlackFideId "200026"]
[WhiteElo "2579"]
[BlackElo "2434"]
[Result "0-1"]
[Round "5"]
[TimeControl "180+1"]
[Date "2023.11.14"]
[WhiteClock "0:00:00"]
[BlackClock "0:00:23"]
[Board "76"]

1. d4 {[%clk 0:02:11]}  Nf6 {[%clk 0:02:58]} 2. c4 {[%clk 0:02:10]}  e6 {[%clk 0:02:58]} 3. Nc3 {[%clk 0:02:11]}  Bb4 {[%clk 0:02:56]} 4. e3 {[%clk 0:02:10]}  O-O {[%clk 0:02:55]} 5. a3 {[%clk 0:02:10]}  Bxc3+ {[%clk 0:02:47]} 6. bxc3 {[%clk 0:02:11]}  d5 {[%clk 0:02:45]} 7. cxd5 {[%clk 0:02:11]}  exd5 {[%clk 0:02:44]} 8. Bd3 {[%clk 0:02:11]}  c5 {[%clk 0:02:36]} 9. Ne2 {[%clk 0:02:10]}  b6 {[%clk 0:02:34]} 10. O-O {[%clk 0:02:10]}  Ba6 {[%clk 0:02:32]} 11. f3 {[%clk 0:02:08]}  Re8 {[%clk 0:02:25]} 12. Ra2 {[%clk 0:02:08]}  Bxd3 {[%clk 0:02:15]} 13. Qxd3 {[%clk 0:02:08]}  Nbd7 {[%clk 0:02:11]} 14. g4 {[%clk 0:02:08]}  Nf8 {[%clk 0:01:50]} 15. Ng3 {[%clk 0:02:07]}  Ne6 {[%clk 0:01:44]} 16. Rg2 {[%clk 0:02:06]}  cxd4 {[%clk 0:01:37]} 17. cxd4 {[%clk 0:02:05]}  Rc8 {[%clk 0:01:36]} 18. h4 {[%clk 0:02:03]}  Qc7 {[%clk 0:01:33]} 19. g5 {[%clk 0:01:59]}  Nd7 {[%clk 0:01:32]} 20. f4 {[%clk 0:01:50]}  Qc3 {[%clk 0:01:28]} 21. Qd1 {[%clk 0:01:49]}  Nef8 {[%clk 0:01:17]} 22. Qg4 {[%clk 0:01:38]}  Rc6 {[%clk 0:01:06]} 23. h5 {[%clk 0:01:35]}  Qd3 {[%clk 0:01:02]} 24. Kh2 {[%clk 0:01:25]}  Rc2 {[%clk 0:01:01]} 25. Rff2 {[%clk 0:01:20]}  Rxf2 {[%clk 0:01:00]} 26. Rxf2 {[%clk 0:01:21]}  Rc8 {[%clk 0:01:00]} 27. Bd2 {[%clk 0:01:07]}  Rc2 {[%clk 0:00:59]} 28. Nf1 {[%clk 0:01:05]}  Qe4 {[%clk 0:00:55]} 29. Ng3 {[%clk 0:00:56]}  Qd3 {[%clk 0:00:54]} 30. Nf1 {[%clk 0:00:57]}  Qe4 {[%clk 0:00:54]} 31. Qd1 {[%clk 0:00:57]}  Ra2 {[%clk 0:00:53]} 32. Qb3 {[%clk 0:00:54]}  Ra1 {[%clk 0:00:51]} 33. Ng3 {[%clk 0:00:51]}  Qe6 {[%clk 0:00:51]} 34. f5 {[%clk 0:00:47]}  Qd6 {[%clk 0:00:50]} 35. Bb4 {[%clk 0:00:46]}  Qc6 {[%clk 0:00:48]} 36. g6 {[%clk 0:00:42]}  hxg6 {[%clk 0:00:47]} 37. fxg6 {[%clk 0:00:42]}  fxg6 {[%clk 0:00:45]} 38. e4 {[%clk 0:00:38]}  Qc1 {[%clk 0:00:43]} 39. Qxd5+ {[%clk 0:00:36]}  Kh8 {[%clk 0:00:41]} 40. Rf1 {[%clk 0:00:27]}  Qb2+ {[%clk 0:00:37]} 41. Kg1 {[%clk 0:00:21]}  Rxf1+ {[%clk 0:00:35]} 42. Nxf1 {[%clk 0:00:21]}  Qe2 {[%clk 0:00:33]} 43. Bxf8 {[%clk 0:00:15]}  Nxf8 {[%clk 0:00:32]} 44. hxg6 {[%clk 0:00:16]}  Qg4+ {[%clk 0:00:31]} 45. Kf2 {[%clk 0:00:16]}  Nxg6 {[%clk 0:00:30]} 46. Qf5 {[%clk 0:00:14]}  Qh4+ {[%clk 0:00:29]} 47. Ng3 {[%clk 0:00:13]}  Qh2+ {[%clk 0:00:29]} 48. Kf1 {[%clk 0:00:08]}  Qxg3 {[%clk 0:00:29]} 49. d5 {[%clk 0:00:06]}  Nf4 {[%clk 0:00:28]} 50. Qc8+ {[%clk 0:00:06]}  Kh7 {[%clk 0:00:27]} 51. Qf5+ {[%clk 0:00:06]}  g6 {[%clk 0:00:25]} 52. Qf7+ {[%clk 0:00:04]}  Kh6 {[%clk 0:00:25]} 53. Qf8+ {[%clk 0:00:05]}  Kg5 {[%clk 0:00:25]} 54. Qe7+ {[%clk 0:00:04]}  Kg4 {[%clk 0:00:25]} 55. Qd7+ {[%clk 0:00:03]}  Kf3 {[%clk 0:00:25]} 56. Qh3 {[%clk 0:00:01]}  Qxh3+ {[%clk 0:00:24]} 57. Ke1 {[%clk 0:00:02]}  Qg2 {[%clk 0:00:24]} 58. Kd1 {[%clk 0:00:00]}  Qb2 {[%clk 0:00:23]} 0-1


[Site "https://www.chess.com"]

[Event "Titled Tuesday Blitz November 14 Late 2023"]
[White "Potapova, Margarita"]
[Black "Yang, Kevin"]
[WhiteFideId "14126869"]
[BlackFideId "30908485"]
[WhiteElo "2574"]
[BlackElo "2431"]
[Result "1-0"]
[Round "5"]
[TimeControl "180+1"]
[Date "2023.11.14"]
[WhiteClock "0:00:55"]
[BlackClock "0:00:01"]
[Board "79"]

1. e4 {[%clk 0:01:51]}  c6 {[%clk 0:02:55]} 2. d4 {[%clk 0:01:51]}  d5 {[%clk 0:02:53]} 3. Nc3 {[%clk 0:01:52]}  dxe4 {[%clk 0:02:53]} 4. Nxe4 {[%clk 0:01:53]}  Nd7 {[%clk 0:02:53]} 5. Nf3 {[%clk 0:01:52]}  Ngf6 {[%clk 0:02:53]} 6. Ng3 {[%clk 0:01:51]}  g6 {[%clk 0:02:51]} 7. Bd3 {[%clk 0:01:52]}  Bg7 {[%clk 0:02:52]} 8. O-O {[%clk 0:01:52]}  O-O {[%clk 0:02:51]} 9. Re1 {[%clk 0:01:51]}  c5 {[%clk 0:02:48]} 10. c3 {[%clk 0:01:46]}  b6 {[%clk 0:02:46]} 11. Qe2 {[%clk 0:01:42]}  e6 {[%clk 0:02:38]} 12. Bf4 {[%clk 0:01:42]}  Bb7 {[%clk 0:02:30]} 13. Ne4 {[%clk 0:01:38]}  Nxe4 {[%clk 0:02:17]} 14. Bxe4 {[%clk 0:01:39]}  Bxe4 {[%clk 0:02:16]} 15. Qxe4 {[%clk 0:01:40]}  Nf6 {[%clk 0:02:16]} 16. Qe2 {[%clk 0:01:37]}  Qe7 {[%clk 0:02:12]} 17. dxc5 {[%clk 0:01:36]}  Qxc5 {[%clk 0:02:10]} 18. Rad1 {[%clk 0:01:37]}  Rfd8 {[%clk 0:02:08]} 19. h3 {[%clk 0:01:35]}  h6 {[%clk 0:02:00]} 20. Be3 {[%clk 0:01:34]}  Qc7 {[%clk 0:01:53]} 21. Nd4 {[%clk 0:01:34]}  Nd5 {[%clk 0:01:50]} 22. Qf3 {[%clk 0:01:32]}  Nxe3 {[%clk 0:01:45]} 23. Qxe3 {[%clk 0:01:32]}  Qc4 {[%clk 0:01:34]} 24. Nf3 {[%clk 0:01:29]}  Qxa2 {[%clk 0:01:28]} 25. b4 {[%clk 0:01:23]}  Qb3 {[%clk 0:01:09]} 26. Rc1 {[%clk 0:01:14]}  Rd6 {[%clk 0:01:03]} 27. Qf4 {[%clk 0:01:13]}  Rad8 {[%clk 0:00:59]} 28. h4 {[%clk 0:01:12]}  Bxc3 {[%clk 0:00:41]} 29. Qxh6 {[%clk 0:01:12]}  Bg7 {[%clk 0:00:29]} 30. Qf4 {[%clk 0:01:12]}  Rd5 {[%clk 0:00:26]} 31. Rc7 {[%clk 0:01:09]}  Rf5 {[%clk 0:00:26]} 32. Qe4 {[%clk 0:01:10]}  a5 {[%clk 0:00:23]} 33. bxa5 {[%clk 0:01:09]}  bxa5 {[%clk 0:00:23]} 34. Rb7 {[%clk 0:01:08]}  Qd5 {[%clk 0:00:22]} 35. Qb1 {[%clk 0:01:07]}  Rxf3 {[%clk 0:00:21]} 36. gxf3 {[%clk 0:01:06]}  Qxf3 {[%clk 0:00:21]} 37. Qe4 {[%clk 0:01:06]}  Qh3 {[%clk 0:00:17]} 38. Qf4 {[%clk 0:01:02]}  f5 {[%clk 0:00:13]} 39. Rc1 {[%clk 0:00:56]}  Rd3 {[%clk 0:00:04]} 40. Rc8+ {[%clk 0:00:54]}  Kh7 {[%clk 0:00:04]} 41. Rxg7+ {[%clk 0:00:54]}  Kxg7 {[%clk 0:00:04]} 42. Qe5+ {[%clk 0:00:55]}  Kf7 {[%clk 0:00:02]} 43. Rc7+ {[%clk 0:00:55]}  Kf8 {[%clk 0:00:01]} 44. Qh8# {[%clk 0:00:55]} 1-0


[Site "https://www.chess.com"]

[Event "Titled Tuesday Blitz November 14 Late 2023"]
[White "Kashefi, Amir Hosein"]
[Black "Miszler, Levente"]
[WhiteFideId "12557935"]
[BlackFideId "763276"]
[WhiteElo "2557"]
[BlackElo "2419"]
[Result "1-0"]
[Round "5"]
[TimeControl "180+1"]
[Date "2023.11.14"]
[WhiteClock "0:01:22"]
[BlackClock "0:01:56"]
[Board "83"]

1. d4 {[%clk 0:02:59]}  Nf6 {[%clk 0:02:57]} 2. Nf3 {[%clk 0:02:58]}  Ne4 {[%clk 0:02:57]} 3. g3 {[%clk 0:02:55]}  c5 {[%clk 0:02:56]} 4. Bg2 {[%clk 0:02:55]}  e6 {[%clk 0:02:53]} 5. O-O {[%clk 0:02:55]}  Nc6 {[%clk 0:02:53]} 6. b3 {[%clk 0:02:54]}  d5 {[%clk 0:02:46]} 7. Bb2 {[%clk 0:02:53]}  Be7 {[%clk 0:02:42]} 8. dxc5 {[%clk 0:02:52]}  Bf6 {[%clk 0:02:42]} 9. Qc1 {[%clk 0:02:51]}  Nxc5 {[%clk 0:02:38]} 10. Nbd2 {[%clk 0:02:50]}  O-O {[%clk 0:02:37]} 11. c4 {[%clk 0:02:50]}  d4 {[%clk 0:02:37]} 12. a3 {[%clk 0:02:49]}  e5 {[%clk 0:02:36]} 13. Qc2 {[%clk 0:02:49]}  Re8 {[%clk 0:02:35]} 14. b4 {[%clk 0:02:48]}  Ne6 {[%clk 0:02:33]} 15. h4 {[%clk 0:02:39]}  a5 {[%clk 0:02:32]} 16. b5 {[%clk 0:02:38]}  Ne7 {[%clk 0:02:32]} 17. Ne4 {[%clk 0:02:36]}  Nf5 {[%clk 0:02:31]} 18. c5 {[%clk 0:02:34]}  b6 {[%clk 0:02:24]} 19. c6 {[%clk 0:02:34]}  Nd6 {[%clk 0:02:23]} 20. Nxd6 {[%clk 0:02:26]}  Qxd6 {[%clk 0:02:24]} 21. a4 {[%clk 0:02:26]}  Nc5 {[%clk 0:02:25]} 22. Nd2 {[%clk 0:02:25]}  d3 {[%clk 0:02:18]} 23. exd3 {[%clk 0:02:23]}  Qxd3 {[%clk 0:02:18]} 24. Qxd3 {[%clk 0:02:19]}  Nxd3 {[%clk 0:02:19]} 25. Bc3 {[%clk 0:02:15]}  Be6 {[%clk 0:02:18]} 26. Ne4 {[%clk 0:02:13]}  Be7 {[%clk 0:02:17]} 27. Rfd1 {[%clk 0:02:13]}  Nc5 {[%clk 0:02:16]} 28. Nxc5 {[%clk 0:02:13]}  Bxc5 {[%clk 0:02:17]} 29. Bxe5 {[%clk 0:02:10]}  Bb3 {[%clk 0:02:17]} 30. Re1 {[%clk 0:02:09]}  Bb4 {[%clk 0:02:17]} 31. Re3 {[%clk 0:02:09]}  Rxe5 {[%clk 0:02:14]} 32. Rxe5 {[%clk 0:01:30]}  Bc3 {[%clk 0:02:12]} 33. Ra3 {[%clk 0:01:23]}  Bxe5 {[%clk 0:02:10]} 34. Rxb3 {[%clk 0:01:23]}  Rc8 {[%clk 0:02:10]} 35. Rd3 {[%clk 0:01:22]}  Bc7 {[%clk 0:02:10]} 36. Rd7 {[%clk 0:01:22]}  Kf8 {[%clk 0:01:56]} 37. Bd5 {[%clk 0:01:22]} 1-0


[Site "https://www.chess.com"]

[Event "Titled Tuesday Blitz November 14 Late 2023"]
[White "Cervantes Landeiro, Thalia"]
[Black "Bogaudinov, Rushan"]
[WhiteFideId "3520498"]
[BlackFideId "4129288"]
[WhiteElo "2548"]
[BlackElo "2400"]
[Result "0-1"]
[Round "5"]
[TimeControl "180+1"]
[Date "2023.11.14"]
[WhiteClock "0:00:00"]
[BlackClock "0:00:19"]
[Board "86"]

1. d4 {[%clk 0:02:50]}  Nf6 {[%clk 0:02:58]} 2. c4 {[%clk 0:02:49]}  e6 {[%clk 0:02:58]} 3. Nf3 {[%clk 0:02:49]}  b6 {[%clk 0:02:56]} 4. g3 {[%clk 0:02:47]}  Bb7 {[%clk 0:02:56]} 5. Bg2 {[%clk 0:02:47]}  Bb4+ {[%clk 0:02:55]} 6. Bd2 {[%clk 0:02:43]}  Be7 {[%clk 0:02:48]} 7. O-O {[%clk 0:02:41]}  O-O {[%clk 0:02:44]} 8. Qc2 {[%clk 0:02:37]}  Ne4 {[%clk 0:02:30]} 9. Bf4 {[%clk 0:02:26]}  f5 {[%clk 0:02:28]} 10. Nc3 {[%clk 0:02:23]}  Nxc3 {[%clk 0:02:19]} 11. Qxc3 {[%clk 0:02:23]}  d6 {[%clk 0:02:18]} 12. Rfd1 {[%clk 0:02:21]}  Nd7 {[%clk 0:02:17]} 13. Rac1 {[%clk 0:02:20]}  Qe8 {[%clk 0:02:12]} 14. b4 {[%clk 0:02:20]}  Nf6 {[%clk 0:02:02]} 15. Ng5 {[%clk 0:01:59]}  Bxg2 {[%clk 0:01:55]} 16. Kxg2 {[%clk 0:02:00]}  Bd8 {[%clk 0:01:36]} 17. Nf3 {[%clk 0:01:43]}  h6 {[%clk 0:01:30]} 18. h4 {[%clk 0:01:40]}  Ne4 {[%clk 0:01:29]} 19. Qe3 {[%clk 0:01:29]}  Qh5 {[%clk 0:01:28]} 20. Rh1 {[%clk 0:01:17]}  Be7 {[%clk 0:01:14]} 21. Nd2 {[%clk 0:01:13]}  Nxd2 {[%clk 0:01:11]} 22. Qxe6+ {[%clk 0:01:05]}  Qf7 {[%clk 0:01:10]} 23. Qxf7+ {[%clk 0:01:04]}  Kxf7 {[%clk 0:01:08]} 24. Bxd2 {[%clk 0:01:05]}  Bf6 {[%clk 0:01:06]} 25. e3 {[%clk 0:01:04]}  h5 {[%clk 0:01:05]} 26. c5 {[%clk 0:01:03]}  bxc5 {[%clk 0:01:01]} 27. bxc5 {[%clk 0:01:03]}  Ke6 {[%clk 0:00:51]} 28. cxd6 {[%clk 0:01:03]}  cxd6 {[%clk 0:00:52]} 29. Rc7 {[%clk 0:00:57]}  Rfb8 {[%clk 0:00:49]} 30. a3 {[%clk 0:00:48]}  a5 {[%clk 0:00:47]} 31. Rhc1 {[%clk 0:00:47]}  Rb2 {[%clk 0:00:40]} 32. Bc3 {[%clk 0:00:45]}  Rb3 {[%clk 0:00:37]} 33. Rd1 {[%clk 0:00:36]}  Kd5 {[%clk 0:00:33]} 34. f3 {[%clk 0:00:29]}  Bd8 {[%clk 0:00:32]} 35. e4+ {[%clk 0:00:19]}  fxe4 {[%clk 0:00:33]} 36. fxe4+ {[%clk 0:00:19]}  Kxe4 {[%clk 0:00:34]} 37. Re1+ {[%clk 0:00:09]}  Kd5 {[%clk 0:00:31]} 38. Rf7 {[%clk 0:00:03]}  Rxc3 {[%clk 0:00:30]} 39. Rf5+ {[%clk 0:00:04]}  Kc4 {[%clk 0:00:30]} 40. Rxh5 {[%clk 0:00:04]}  Bf6 {[%clk 0:00:27]} 41. g4 {[%clk 0:00:02]}  Bxd4 {[%clk 0:00:26]} 42. g5 {[%clk 0:00:03]}  Be5 {[%clk 0:00:25]} 43. g6 {[%clk 0:00:02]}  Rb8 {[%clk 0:00:24]} 44. Rh7 {[%clk 0:00:02]}  Rb2+ {[%clk 0:00:24]} 45. Kf1 {[%clk 0:00:02]}  Rf3+ {[%clk 0:00:23]} 46. Kg1 {[%clk 0:00:02]}  Bd4+ {[%clk 0:00:20]} 47. Kh1 {[%clk 0:00:00]}  Kd5 {[%clk 0:00:19]} 0-1


[Site "https://www.chess.com"]

[Event "Titled Tuesday Blitz November 14 Late 2023"]
[White "Ongut, Tamas Gunes"]
[Black "Melikhov, Evgeny V."]
[WhiteFideId "770280"]
[BlackFideId "4122046"]
[WhiteElo "2539"]
[BlackElo "2391"]
[Result "0-1"]
[Round "5"]
[TimeControl "180+1"]
[Date "2023.11.14"]
[WhiteClock "0:00:22"]
[BlackClock "0:01:26"]
[Board "87"]

1. d4 {[%clk 0:03:00]}  Nf6 {[%clk 0:02:53]} 2. c4 {[%clk 0:03:01]}  e6 {[%clk 0:02:52]} 3. Nc3 {[%clk 0:03:01]}  Bb4 {[%clk 0:02:51]} 4. e3 {[%clk 0:03:02]}  b6 {[%clk 0:02:51]} 5. Ne2 {[%clk 0:03:00]}  Ba6 {[%clk 0:02:50]} 6. Ng3 {[%clk 0:02:58]}  Bxc3+ {[%clk 0:02:33]} 7. bxc3 {[%clk 0:02:58]}  d5 {[%clk 0:02:31]} 8. cxd5 {[%clk 0:02:47]}  Bxf1 {[%clk 0:02:30]} 9. Rxf1 {[%clk 0:02:31]}  exd5 {[%clk 0:02:28]} 10. Ba3 {[%clk 0:02:27]}  Qd7 {[%clk 0:02:23]} 11. Qd3 {[%clk 0:02:21]}  Nc6 {[%clk 0:02:18]} 12. Nf5 {[%clk 0:02:10]}  g6 {[%clk 0:02:03]} 13. Ng3 {[%clk 0:01:57]}  Na5 {[%clk 0:02:01]} 14. e4 {[%clk 0:01:44]}  Nc4 {[%clk 0:02:00]} 15. Bb4 {[%clk 0:01:39]}  a5 {[%clk 0:02:00]} 16. exd5 {[%clk 0:01:35]}  Qxd5 {[%clk 0:01:57]} 17. Ba3 {[%clk 0:00:26]}  Nxa3 {[%clk 0:01:51]} 18. O-O-O {[%clk 0:00:26]}  O-O {[%clk 0:01:47]} 19. Kb2 {[%clk 0:00:27]}  Nc4+ {[%clk 0:01:44]} 20. Ka1 {[%clk 0:00:27]}  Rfe8 {[%clk 0:01:41]} 21. h4 {[%clk 0:00:24]}  h5 {[%clk 0:01:38]} 22. Rfe1 {[%clk 0:00:22]}  Rxe1 {[%clk 0:01:36]} 23. Rxe1 {[%clk 0:00:23]}  Re8 {[%clk 0:01:35]} 24. Rxe8+ {[%clk 0:00:22]}  Nxe8 {[%clk 0:01:35]} 25. f4 {[%clk 0:00:21]}  Ned6 {[%clk 0:01:34]} 26. Qe2 {[%clk 0:00:19]}  Qe6 {[%clk 0:01:31]} 27. Qf2 {[%clk 0:00:18]}  Qe3 {[%clk 0:01:31]} 28. Qxe3 {[%clk 0:00:19]}  Nxe3 {[%clk 0:01:30]} 29. d5 {[%clk 0:00:19]}  Nxg2 {[%clk 0:01:30]} 30. c4 {[%clk 0:00:20]}  Nxc4 {[%clk 0:01:29]} 31. Ne4 {[%clk 0:00:21]}  Nxf4 {[%clk 0:01:26]} 32. d6 {[%clk 0:00:22]} 0-1


[Site "https://www.chess.com"]

[Event "Titled Tuesday Blitz November 14 Late 2023"]
[White "Kuznecovs, Nikita"]
[Black "Balla, Tamas-Kristof"]
[WhiteFideId "11604557"]
[BlackFideId "1208497"]
[WhiteElo "2539"]
[BlackElo "2389"]
[Result "1-0"]
[Round "5"]
[TimeControl "180+1"]
[Date "2023.11.14"]
[WhiteClock "0:00:10"]
[BlackClock "0:00:09"]
[Board "88"]

1. Nf3 {[%clk 0:02:59]}  c5 {[%clk 0:03:00]} 2. g3 {[%clk 0:02:59]}  Nc6 {[%clk 0:03:00]} 3. Bg2 {[%clk 0:03:00]}  g6 {[%clk 0:03:01]} 4. h4 {[%clk 0:02:59]}  h6 {[%clk 0:02:59]} 5. e4 {[%clk 0:02:59]}  Bg7 {[%clk 0:02:59]} 6. d3 {[%clk 0:02:54]}  e6 {[%clk 0:02:54]} 7. Nbd2 {[%clk 0:02:51]}  Nge7 {[%clk 0:02:54]} 8. Qe2 {[%clk 0:02:45]}  O-O {[%clk 0:02:53]} 9. a4 {[%clk 0:02:20]}  d5 {[%clk 0:02:51]} 10. O-O {[%clk 0:02:15]}  b6 {[%clk 0:02:51]} 11. Re1 {[%clk 0:02:15]}  Bb7 {[%clk 0:02:51]} 12. Nf1 {[%clk 0:02:07]}  Qd7 {[%clk 0:02:45]} 13. h5 {[%clk 0:02:04]}  g5 {[%clk 0:02:44]} 14. N1h2 {[%clk 0:01:59]}  dxe4 {[%clk 0:02:33]} 15. dxe4 {[%clk 0:01:59]}  Nd4 {[%clk 0:02:20]} 16. Nxd4 {[%clk 0:01:53]}  cxd4 {[%clk 0:02:20]} 17. f4 {[%clk 0:01:47]}  f6 {[%clk 0:02:04]} 18. Bh3 {[%clk 0:01:26]}  Rac8 {[%clk 0:01:50]} 19. Qb5 {[%clk 0:01:20]}  Qd6 {[%clk 0:01:42]} 20. Qb3 {[%clk 0:01:14]}  Rc6 {[%clk 0:01:26]} 21. Bd2 {[%clk 0:00:58]}  a5 {[%clk 0:01:20]} 22. Rad1 {[%clk 0:00:41]}  Ba6 {[%clk 0:01:20]} 23. c3 {[%clk 0:00:23]}  Bc4 {[%clk 0:01:19]} 24. Qc2 {[%clk 0:00:22]}  d3 {[%clk 0:01:19]} 25. Qc1 {[%clk 0:00:23]}  e5 {[%clk 0:01:12]} 26. Be3 {[%clk 0:00:21]}  exf4 {[%clk 0:01:02]} 27. gxf4 {[%clk 0:00:21]}  Kh8 {[%clk 0:00:55]} 28. Bf1 {[%clk 0:00:18]}  Rd8 {[%clk 0:00:51]} 29. Qd2 {[%clk 0:00:17]}  Bb3 {[%clk 0:00:39]} 30. Ra1 {[%clk 0:00:17]}  Rcc8 {[%clk 0:00:34]} 31. Kh1 {[%clk 0:00:17]}  Bc4 {[%clk 0:00:32]} 32. Bg2 {[%clk 0:00:17]}  Qc7 {[%clk 0:00:19]} 33. b3 {[%clk 0:00:16]}  Ba6 {[%clk 0:00:19]} 34. c4 {[%clk 0:00:16]}  Nc6 {[%clk 0:00:18]} 35. Nf1 {[%clk 0:00:10]}  Nb4 {[%clk 0:00:18]} 36. Rac1 {[%clk 0:00:09]}  Bb7 {[%clk 0:00:19]} 37. Ng3 {[%clk 0:00:09]}  Re8 {[%clk 0:00:19]} 38. Nf5 {[%clk 0:00:10]}  Rcd8 {[%clk 0:00:18]} 39. Bf2 {[%clk 0:00:07]}  gxf4 {[%clk 0:00:16]} 40. Nd4 {[%clk 0:00:06]}  Nc6 {[%clk 0:00:14]} 41. Nf5 {[%clk 0:00:06]}  Ne5 {[%clk 0:00:14]} 42. Nxg7 {[%clk 0:00:07]}  Kxg7 {[%clk 0:00:14]} 43. Rg1 {[%clk 0:00:07]}  Kh7 {[%clk 0:00:13]} 44. Rce1 {[%clk 0:00:07]}  f3 {[%clk 0:00:13]} 45. Bh3 {[%clk 0:00:08]}  Rg8 {[%clk 0:00:13]} 46. Bf5+ {[%clk 0:00:09]}  Kh8 {[%clk 0:00:09]} 47. Qxh6+ {[%clk 0:00:10]} 1-0


[Site "https://www.chess.com"]

[Event "Titled Tuesday Blitz November 14 Late 2023"]
[White "Ismayil, Malak"]
[Black "Huda, Maryana"]
[WhiteFideId "13412604"]
[BlackFideId "14116553"]
[WhiteElo "2533"]
[BlackElo "2385"]
[Result "1-0"]
[Round "5"]
[TimeControl "180+1"]
[Date "2023.11.14"]
[WhiteClock "0:00:08"]
[BlackClock "0:00:00"]
[Board "89"]

1. e4 {[%clk 0:03:00]}  c5 {[%clk 0:02:59]} 2. Nf3 {[%clk 0:03:00]}  d6 {[%clk 0:02:58]} 3. Bb5+ {[%clk 0:02:56]}  Bd7 {[%clk 0:02:57]} 4. Bxd7+ {[%clk 0:02:54]}  Qxd7 {[%clk 0:02:58]} 5. c4 {[%clk 0:02:53]}  Nf6 {[%clk 0:02:57]} 6. Nc3 {[%clk 0:02:52]}  Nc6 {[%clk 0:02:55]} 7. d4 {[%clk 0:02:26]}  cxd4 {[%clk 0:02:56]} 8. Nxd4 {[%clk 0:02:26]}  e6 {[%clk 0:02:52]} 9. O-O {[%clk 0:02:25]}  Be7 {[%clk 0:02:52]} 10. Re1 {[%clk 0:02:25]}  O-O {[%clk 0:02:50]} 11. Bg5 {[%clk 0:02:25]}  a6 {[%clk 0:02:48]} 12. Rc1 {[%clk 0:02:23]}  Rac8 {[%clk 0:02:45]} 13. b3 {[%clk 0:02:23]}  Nxd4 {[%clk 0:02:26]} 14. Qxd4 {[%clk 0:02:24]}  Qc7 {[%clk 0:02:23]} 15. h3 {[%clk 0:02:17]}  Rfd8 {[%clk 0:02:21]} 16. Qe3 {[%clk 0:01:59]}  Ne8 {[%clk 0:02:00]} 17. Bf4 {[%clk 0:01:40]}  Qc5 {[%clk 0:01:49]} 18. Qg3 {[%clk 0:01:36]}  Bf6 {[%clk 0:01:28]} 19. Na4 {[%clk 0:01:35]}  Qc7 {[%clk 0:01:06]} 20. c5 {[%clk 0:01:26]}  e5 {[%clk 0:01:00]} 21. Be3 {[%clk 0:01:16]}  dxc5 {[%clk 0:00:54]} 22. Bxc5 {[%clk 0:01:17]}  b5 {[%clk 0:00:21]} 23. Nb2 {[%clk 0:01:13]}  Qb7 {[%clk 0:00:18]} 24. b4 {[%clk 0:01:12]}  Nd6 {[%clk 0:00:15]} 25. Bxd6 {[%clk 0:01:04]}  Rxd6 {[%clk 0:00:14]} 26. Nd3 {[%clk 0:01:02]}  Rxc1 {[%clk 0:00:13]} 27. Rxc1 {[%clk 0:01:03]}  h6 {[%clk 0:00:12]} 28. Nxe5 {[%clk 0:00:30]}  Qxe4 {[%clk 0:00:08]} 29. Nxf7 {[%clk 0:00:15]}  Kxf7 {[%clk 0:00:06]} 30. Qxd6 {[%clk 0:00:15]}  Be5 {[%clk 0:00:05]} 31. Rc7+ {[%clk 0:00:11]}  Kg8 {[%clk 0:00:05]} 32. Qd8+ {[%clk 0:00:07]}  Kh7 {[%clk 0:00:05]} 33. Rc1 {[%clk 0:00:08]}  Qe2 {[%clk 0:00:04]} 34. Qd1 {[%clk 0:00:07]}  Qxd1+ {[%clk 0:00:04]} 35. Rxd1 {[%clk 0:00:08]}  Bc3 {[%clk 0:00:04]} 36. a3 {[%clk 0:00:07]}  Bb2 {[%clk 0:00:04]} 37. Rd3 {[%clk 0:00:08]}  Kg6 {[%clk 0:00:03]} 38. Kf1 {[%clk 0:00:08]}  Kf5 {[%clk 0:00:03]} 39. Ke2 {[%clk 0:00:09]}  Ke4 {[%clk 0:00:04]} 40. f3+ {[%clk 0:00:10]}  Ke5 {[%clk 0:00:03]} 41. g4 {[%clk 0:00:11]}  g5 {[%clk 0:00:03]} 42. Ke3 {[%clk 0:00:10]}  Ba1 {[%clk 0:00:02]} 43. Rd7 {[%clk 0:00:08]}  Bb2 {[%clk 0:00:02]} 44. Re7+ {[%clk 0:00:07]}  Kd6 {[%clk 0:00:02]} 45. Ra7 {[%clk 0:00:07]}  Bxa3 {[%clk 0:00:02]} 46. Rxa6+ {[%clk 0:00:07]}  Kd5 {[%clk 0:00:00]} 47. Rxa3 {[%clk 0:00:08]} 1-0


[Site "https://www.chess.com"]

[Event "Titled Tuesday Blitz November 14 Late 2023"]
[White "Skaric, Djuro"]
[Black "TimGrutter03"]
[WhiteFideId "934569"]
[WhiteElo "2369"]
[BlackElo "2530"]
[Result "0-1"]
[Round "5"]
[TimeControl "180+1"]
[Date "2023.11.14"]
[WhiteClock "0:00:39"]
[BlackClock "0:00:23"]
[Board "90"]

1. g3 {[%clk 0:03:00]}  g6 {[%clk 0:03:00]} 2. Bg2 {[%clk 0:03:01]}  Bg7 {[%clk 0:03:01]} 3. d3 {[%clk 0:03:01]}  d6 {[%clk 0:03:01]} 4. Nc3 {[%clk 0:03:02]}  Nc6 {[%clk 0:03:01]} 5. e4 {[%clk 0:03:02]}  Nd4 {[%clk 0:02:58]} 6. f4 {[%clk 0:03:03]}  h5 {[%clk 0:02:56]} 7. h3 {[%clk 0:03:01]}  c5 {[%clk 0:02:48]} 8. Nf3 {[%clk 0:03:01]}  a6 {[%clk 0:02:45]} 9. O-O {[%clk 0:03:01]}  Nh6 {[%clk 0:02:41]} 10. Nh4 {[%clk 0:02:56]}  Bf6 {[%clk 0:02:33]} 11. Nf3 {[%clk 0:02:48]}  Nxf3+ {[%clk 0:02:25]} 12. Qxf3 {[%clk 0:02:47]}  Bd7 {[%clk 0:02:19]} 13. e5 {[%clk 0:02:45]}  Bc6 {[%clk 0:02:19]} 14. Qe2 {[%clk 0:02:43]}  dxe5 {[%clk 0:02:15]} 15. Bxc6+ {[%clk 0:02:41]}  bxc6 {[%clk 0:02:15]} 16. fxe5 {[%clk 0:02:40]}  Qd4+ {[%clk 0:02:14]} 17. Kg2 {[%clk 0:02:30]}  Qxe5 {[%clk 0:02:10]} 18. Qf3 {[%clk 0:02:28]}  Qd6 {[%clk 0:01:33]} 19. Bxh6 {[%clk 0:02:26]}  Rxh6 {[%clk 0:01:33]} 20. Rae1 {[%clk 0:02:25]}  Bxc3 {[%clk 0:00:58]} 21. Qxf7+ {[%clk 0:02:23]}  Kd7 {[%clk 0:00:57]} 22. bxc3 {[%clk 0:02:17]}  g5 {[%clk 0:00:47]} 23. Rf5 {[%clk 0:02:01]}  h4 {[%clk 0:00:40]} 24. gxh4 {[%clk 0:01:38]}  gxh4 {[%clk 0:00:39]} 25. Qg7 {[%clk 0:01:36]}  Rg6+ {[%clk 0:00:38]} 26. Rg5 {[%clk 0:01:34]}  Rxg7 {[%clk 0:00:37]} 27. Rxg7 {[%clk 0:01:34]}  Rf8 {[%clk 0:00:35]} 28. Re4 {[%clk 0:01:32]}  Qf6 {[%clk 0:00:35]} 29. Kh2 {[%clk 0:00:39]}  Qxg7 {[%clk 0:00:23]} 0-1


[Site "https://www.chess.com"]